bitfinex/quotes_BTCUSD_20250718
["timestamp","ask_amount","ask_price","bid_price","bid_amount"]
[1752828804288,0.55414878,118630.0,118620.0,0.31414316]
[1752828804505,0.72274019,118630.0,118620.0,0.3141433]
[1752828804725,0.73116976,118630.0,118620.0,0.31414323]
[1752828805395,0.73116976,118630.0,118620.0,0.30571331]
[1752828805611,0.73116976,118630.0,118620.0,0.3141433]
[1752828805612,0.73956414,118630.0,118620.0,0.3141433]
[1752828805825,0.56254316,118630.0,118620.0,0.31414294]
[1752828806033,0.57097216,118630.0,118620.0,0.32257272]
[1752828806273,0.57940165,118630.0,118620.0,0.32257272]
[1752828806487,0.56254274,118630.0,118620.0,0.32257272]
[1752828806915,0.57097216,118630.0,118620.0,0.32257272]
[1752828807381,0.58783122,118630.0,118620.0,0.31414294]
[1752828807610,0.74799356,118630.0,118620.0,0.30571309]
[1752828807828,0.73956428,118630.0,118620.0,0.30571309]
[1752828808045,0.73113486,118630.0,118620.0,0.31951397]
[1752828808266,0.73113486,118630.0,118620.0,0.32794403]
[1752828808707,0.73113486,118630.0,118620.0,0.33637402]
[1752828809277,0.73113486,118630.0,118620.0,0.31414301]
[1752828809702,0.73113486,118630.0,118620.0,0.32257286]
[1752828810108,0.41523388,118630.0,118620.0,0.32257286]
[1752828810330,0.56253757,118630.0,118620.0,0.32257251]
[1752828810557,0.57096699,118630.0,118620.0,0.78833876]
[1752828810782,0.57096699,118630.0,118620.0,0.87409838]
[1752828811007,0.74798789,118630.0,118620.0,0.87409838]
[1752828811233,0.73955882,118630.0,118620.0,0.3914725]
[1752828811466,0.72270033,118630.0,118620.0,0.29728325]
[1752828811683,0.72270033,118630.0,118620.0,0.30571324]
[1752828812326,0.41526892,118630.0,118620.0,0.32257287]
[1752828812507,0.56231237,118630.0,118620.0,0.32257287]
[1752828812783,0.42351209,118630.0,118620.0,0.37538924]
[1752828812995,0.42351209,118630.0,118620.0,0.84115549]
[1752828812996,0.5624975,118630.0,118620.0,0.84115549]
[1752828813211,0.55406815,118630.0,118620.0,0.84115549]
[1752828813420,0.57092678,118630.0,118620.0,0.84115549]
[1752828813631,0.57092671,118630.0,118620.0,0.84115549]
[1752828813866,0.39841001,118630.0,118620.0,0.78833912]
[1752828814090,0.37402001,118630.0,118620.0,0.79044912]
[1752828814309,0.31022001,118630.0,118620.0,0.79044912]
[1752828814539,0.31022001,118630.0,118620.0,0.79176912]
[1752828814540,0.20242001,118630.0,118620.0,0.79176912]
[1752828814770,0.34122001,118630.0,118620.0,0.91022874]
[1752828814999,0.34122001,118630.0,118620.0,0.92302874]
[1752828815688,0.34122001,118630.0,118620.0,0.91022874]
[1752828815909,0.34022001,118630.0,118620.0,0.91022874]
[1752828816123,0.33622001,118630.0,118620.0,0.90922874]
[1752828816348,0.33622001,118630.0,118620.0,0.92302874]
[1752828816579,0.33722001,118630.0,118620.0,0.92302874]
[1752828818526,0.33718001,118630.0,118620.0,0.92302874]
[1752828820163,0.33718001,118630.0,118620.0,0.91022874]
[1752828821292,0.33718001,118630.0,118620.0,0.92302874]
[1752828821782,0.33714001,118630.0,118620.0,0.92302874]
[1752828822896,0.33714001,118630.0,118620.0,0.91022874]
[1752828823926,0.33714001,118630.0,118620.0,0.87620874]
[1752828824155,0.39884001,118630.0,118620.0,0.87620874]
[1752828824790,0.40386001,118630.0,118620.0,0.87620874]
[1752828825661,0.36864001,118630.0,118620.0,0.87620874]
[1752828825865,0.33706001,118630.0,118620.0,0.87752874]
[1752828826067,0.33706001,118630.0,118620.0,0.90832874]
[1752828827189,0.33706001,118630.0,118620.0,0.87752874]
[1752828827705,0.33706001,118630.0,118620.0,0.41176249]
[1752828827894,0.19842001,118630.0,118620.0,0.87752874]
[1752828828125,0.33706001,118630.0,118620.0,0.87752874]
[1752828828337,0.33706001,118630.0,118620.0,0.87620874]
[1752828828758,0.33702001,118630.0,118620.0,0.91042874]
[1752828828958,0.33702001,118630.0,118620.0,0.92322874]
[1752828829368,0.19842001,118630.0,118620.0,0.92322874]
[1752828829575,0.33702001,118630.0,118620.0,0.92322874]
[1752828829780,0.33702001,118630.0,118620.0,1.72899499]
[1752828829961,0.33702001,118630.0,118620.0,1.26322874]
[1752828831807,0.10528,118640.0,118630.0,0.57827925]
[1752828831971,0.44628,118640.0,118630.0,1.68306165]
[1752828832169,0.44628,118640.0,118630.0,1.68438165]
[1752828833001,0.44628,118640.0,118630.0,0.75284915]
[1752828833206,0.44624,118640.0,118630.0,1.68538165]
[1752828834799,0.44624,118640.0,118630.0,1.68638165]
[1752828835872,0.23122104,118640.0,118630.0,1.68638165]
[1752828836293,0.2024,118640.0,118630.0,1.68638165]
[1752828836502,0.34092,118640.0,118630.0,1.68638165]
[1752828837171,0.2024,118640.0,118630.0,1.68638165]
[1752828837355,0.34092,118640.0,118630.0,1.68638165]
[1752828837907,0.25951557,118670.0,118660.0,0.19383024]
[1752828837908,0.28928557,118670.0,118660.0,0.19383024]
[1752828838088,0.01724941,118690.0,118670.0,0.19381391]
[1752828838089,0.27736,118680.0,118670.0,0.19381391]
[1752828838323,0.34088,118680.0,118670.0,1.55283669]
[1752828838508,0.34088,118680.0,118670.0,1.64314669]
[1752828838711,0.20276,118690.0,118680.0,0.19379758]
[1752828838922,0.34124,118690.0,118680.0,1.55282036]
[1752828839126,0.34174164,118690.0,118680.0,1.55414036]
[1752828839341,0.20276,118700.0,118690.0,0.19378125]
[1752828839548,0.27988,118700.0,118690.0,0.28132001]
[1752828839764,0.45369,118700.0,118690.0,0.74708626]
[1752828839968,0.45369,118700.0,118690.0,0.74510626]
[1752828840193,0.45369,118700.0,118690.0,0.78302985]
[1752828840405,0.31521,118700.0,118690.0,0.78302985]
[1752828840619,0.45369,118700.0,118690.0,0.78302985]
[1752828840818,0.37869,118700.0,118690.0,0.78402985]
[1752828841031,0.31521,118700.0,118690.0,0.78402985]
[1752828841241,0.41089,118700.0,118690.0,0.78502985]
[1752828841455,0.48589,118700.0,118690.0,0.78502985]
[1752828841661,0.41089,118700.0,118690.0,0.3192636]
[1752828841883,0.48589,118700.0,118690.0,0.78502985]
[1752828842324,0.48589,118700.0,118690.0,0.78700985]
[1752828842537,0.48589,118700.0,118690.0,0.78600985]
[1752828842748,0.41089,118700.0,118690.0,0.78600985]
[1752828842971,0.48589,118700.0,118690.0,0.78500985]
[1752828843178,0.40762,118700.0,118690.0,0.81029985]
[1752828843382,0.4172,118700.0,118690.0,0.81029985]
[1752828843803,0.4785,118700.0,118690.0,0.81029985]
[1752828844011,0.48169,118700.0,118690.0,0.81029985]
[1752828844470,0.47756,118700.0,118690.0,0.81029985]
[1752828844884,0.48079,118700.0,118690.0,0.81029985]
[1752828845092,0.34216,118700.0,118690.0,1.15029985]
[1752828846837,0.41171,118700.0,118690.0,1.15029985]
[1752828847054,0.27331,118700.0,118690.0,1.15029985]
[1752828847273,0.40632,118700.0,118690.0,1.15029985]
[1752828847712,0.40955,118700.0,118690.0,1.15029985]
[1752828849380,0.34212,118700.0,118690.0,1.15029985]
[1752828850239,0.34208,118700.0,118690.0,1.15029985]
[1752828850401,0.3743,118700.0,118690.0,1.15029985]
[1752828850602,0.37541,118700.0,118690.0,1.15029985]
[1752828850803,0.41063,118700.0,118690.0,1.14831985]
[1752828851085,0.48563,118700.0,118690.0,0.30463001]
[1752828851301,0.48563,118700.0,118690.0,0.77039626]
[1752828851522,0.34731,118700.0,118690.0,0.77039626]
[1752828851739,0.48563,118700.0,118690.0,0.81981029]
[1752828852655,0.41063,118700.0,118690.0,0.81981029]
[1752828852864,0.48351,118700.0,118690.0,0.82179029]
[1752828853073,0.48028,118700.0,118690.0,0.82179029]
[1752828853336,0.48024,118700.0,118690.0,0.82179029]
[1752828853825,0.40524,118700.0,118690.0,0.82179029]
[1752828854043,0.26696,118700.0,118690.0,0.82179029]
[1752828854259,0.20376,118700.0,118690.0,0.82179029]
[1752828854472,0.34204,118700.0,118690.0,1.26162157]
[1752828854682,0.34204,118700.0,118690.0,1.29232157]
[1752828855318,0.20376,118700.0,118690.0,1.29232157]
[1752828855526,0.0004,118710.0,118700.0,0.25786492]
[1752828855753,0.13868,118710.0,118700.0,1.36264732]
[1752828855972,0.13868,118710.0,118700.0,1.38166798]
[1752828856179,0.13868,118710.0,118700.0,0.91590173]
[1752828856398,0.13868,118710.0,118700.0,0.89820107]
[1752828856614,0.13868,118710.0,118700.0,0.83278107]
[1752828856833,0.20823,118710.0,118700.0,0.83278107]
[1752828857312,0.20823,118710.0,118700.0,0.83478107]
[1752828857552,0.20823,118710.0,118700.0,0.83678107]
[1752828858486,0.06783,118710.0,118700.0,0.83678107]
[1752828858714,0.17014,118710.0,118700.0,0.83478107]
[1752828858926,0.13864,118710.0,118700.0,0.86206507]
[1752828859405,0.13864,118710.0,118700.0,0.86138507]
[1752828859669,0.13864,118710.0,118700.0,0.86238507]
[1752828860128,0.13864,118710.0,118700.0,0.86106507]
[1752828860575,0.20224,118710.0,118700.0,0.86106507]
[1752828861695,0.044,118710.0,118700.0,0.86106507]
[1752828861901,0.1699,118710.0,118700.0,0.86106507]
[1752828862565,0.17505,118710.0,118700.0,0.85908507]
[1752828862785,0.17505,118710.0,118700.0,1.11332545]
[1752828863196,0.03685,118710.0,118700.0,1.11332545]
[1752828863418,0.17505,118710.0,118700.0,1.11332545]
[1752828863630,0.17505,118710.0,118700.0,1.13872824]
[1752828863851,0.03685,118710.0,118700.0,0.67296199]
[1752828864068,0.23298,118720.0,118710.0,0.1937486]
[1752828864281,0.44614,118720.0,118710.0,0.74713513]
[1752828864497,0.37114,118720.0,118710.0,0.79654916]
[1752828864683,0.44614,118720.0,118710.0,0.79654916]
[1752828864974,0.30798,118720.0,118710.0,0.82183216]
[1752828865194,0.37114,118720.0,118710.0,0.82183216]
[1752828865384,0.44614,118720.0,118710.0,0.82183216]
[1752828865594,0.48459,118720.0,118710.0,0.81129877]
[1752828865808,0.48459,118720.0,118710.0,0.81972216]
[1752828866217,0.40444,118720.0,118710.0,0.82183216]
[1752828866440,0.40743,118720.0,118710.0,0.82183216]
[1752828866666,0.30798,118720.0,118710.0,0.82183216]
[1752828867133,0.41584,118720.0,118710.0,1.28759841]
[1752828867624,0.41584,118720.0,118710.0,0.82183216]
[1752828867829,0.44714,118720.0,118710.0,0.35606591]
[1752828868027,0.20268,118720.0,118710.0,1.28759841]
[1752828868281,0.3408,118720.0,118710.0,1.28759841]
[1752828868520,0.3408,118720.0,118710.0,0.82183216]
[1752828869162,0.27768,118720.0,118710.0,0.82183216]
[1752828869388,0.4158,118720.0,118710.0,0.82183216]
[1752828870028,0.4463,118720.0,118710.0,0.82183216]
[1752828870455,0.3713,118720.0,118710.0,0.82183216]
[1752828870884,0.4463,118720.0,118710.0,0.82183216]
[1752828871536,0.41576,118720.0,118710.0,0.82183216]
[1752828871762,0.20268,118720.0,118710.0,1.66161841]
[1752828871989,0.34076,118720.0,118710.0,1.69201841]
[1752828872218,1e-08,118720.0,118710.0,1.69201841]
[1752828872728,1e-08,118720.0,118710.0,0.76048591]
[1752828872897,0.20264,118730.0,118720.0,0.53373228]
[1752828873115,0.20264,118730.0,118720.0,0.73981218]
[1752828873319,0.34072,118730.0,118720.0,0.74113218]
[1752828873785,0.34072,118730.0,118720.0,1.67266468]
[1752828874765,0.20264,118730.0,118720.0,0.74113218]
[1752828875019,0.34068,118730.0,118720.0,1.67266468]
[1752828875266,1e-08,118730.0,118720.0,1.67266468]
[1752828875513,0.0004,118740.0,118730.0,0.22421597]
[1752828875784,0.0004,118740.0,118730.0,0.82701653]
[1752828876035,0.0004,118740.0,118730.0,0.82833653]
[1752828876290,0.20264,118750.0,118740.0,1.46523215]
[1752828876545,0.20264,118750.0,118740.0,1.11928618]
[1752828876793,0.20264,118750.0,118740.0,1.67086053]
[1752828877042,0.34068,118750.0,118740.0,1.20509428]
[1752828877310,0.20264,118750.0,118740.0,1.17289428]
[1752828877572,0.34068,118750.0,118740.0,1.20591428]
[1752828877797,0.34064,118750.0,118740.0,1.17289428]
[1752828878266,0.40929,118750.0,118740.0,0.36501803]
[1752828878495,0.40929,118750.0,118740.0,0.83078428]
[1752828878727,0.48429,118750.0,118740.0,0.83078428]
[1752828880302,0.40929,118750.0,118740.0,0.83078428]
[1752828880519,0.48429,118750.0,118740.0,0.83078428]
[1752828881407,0.48425,118750.0,118740.0,0.83078428]
[1752828881620,0.41025,118750.0,118740.0,0.83078428]
[1752828882067,0.48525,118750.0,118740.0,0.83078428]
[1752828882289,0.41025,118750.0,118740.0,0.83078428]
[1752828882784,0.41025,118750.0,118740.0,0.83289428]
[1752828883022,0.37955,118750.0,118740.0,0.70712803]
[1752828883255,0.3416,118750.0,118740.0,1.19817028]
[1752828883662,0.3725,118750.0,118740.0,0.73240403]
[1752828883909,0.3725,118750.0,118740.0,1.19817028]
[1752828884129,0.3416,118750.0,118740.0,1.19817028]
[1752828884569,0.34156,118750.0,118740.0,1.19817028]
[1752828885202,0.20364,118750.0,118740.0,1.19817028]
[1752828885423,0.34156,118750.0,118740.0,1.19817028]
[1752828885842,0.20364,118750.0,118740.0,1.19817028]
[1752828886061,0.34156,118750.0,118740.0,1.19817028]
[1752828887220,0.20364,118750.0,118740.0,1.19817028]
[1752828887467,0.34156,118750.0,118740.0,1.19817028]
[1752828887684,0.20364,118750.0,118740.0,1.19817028]
[1752828887952,0.20364,118750.0,118740.0,1.23189028]
[1752828888123,0.34152,118750.0,118740.0,1.23189028]
[1752828888376,0.20364,118750.0,118740.0,1.23189028]
[1752828888566,0.20364,118750.0,118740.0,1.72885653]
[1752828888779,0.34152,118750.0,118740.0,1.72885653]
[1752828889212,0.20364,118750.0,118740.0,1.72885653]
[1752828889422,0.34052,118750.0,118740.0,1.72885653]
[1752828889637,0.0004,118760.0,118750.0,0.53368334]
[1752828889857,0.14343,118760.0,118750.0,1.13648389]
[1752828890066,0.17403,118760.0,118750.0,1.60225014]
[1752828890330,0.16888,118760.0,118750.0,1.60225014]
[1752828890970,0.0004,118760.0,118750.0,1.60225014]
[1752828891181,0.13824,118760.0,118750.0,1.63597014]
[1752828891649,0.13824,118760.0,118750.0,1.63697014]
[1752828892071,0.0004,118760.0,118750.0,1.63697014]
[1752828892282,0.13824,118760.0,118750.0,1.63697014]
[1752828892703,0.13824,118760.0,118750.0,1.63797014]
[1752828892922,0.0004,118760.0,118750.0,1.63797014]
[1752828893129,0.13824,118760.0,118750.0,1.63797014]
[1752828893877,0.0004,118760.0,118750.0,1.63797014]
[1752828894088,0.13824,118760.0,118750.0,1.66897014]
[1752828894309,0.0004,118760.0,118750.0,1.66897014]
[1752828894530,1e-08,118760.0,118750.0,1.66897014]
[1752828894736,0.3403,118780.0,118750.0,1.66897014]
[1752828894737,0.3403,118780.0,118770.0,0.02525804]
[1752828894943,0.4031,118780.0,118770.0,0.74701726]
[1752828895145,0.4479,118780.0,118770.0,0.83277688]
[1752828895358,0.3101,118780.0,118770.0,0.85804488]
[1752828895589,0.3729,118780.0,118770.0,0.85804488]
[1752828895814,0.4479,118780.0,118770.0,0.85804488]
[1752828896021,0.4801,118780.0,118770.0,0.85804488]
[1752828896229,0.41022,118780.0,118770.0,0.85595488]
[1752828896635,0.41022,118780.0,118770.0,0.88122945]
[1752828897057,0.41222,118780.0,118770.0,0.88122945]
[1752828897479,0.41222,118780.0,118770.0,0.4154632]
[1752828897699,0.41222,118780.0,118770.0,0.88122945]
[1752828897903,0.41022,118780.0,118770.0,0.88122945]
[1752828898092,0.41122,118780.0,118770.0,0.88122945]
[1752828898332,0.48622,118780.0,118770.0,0.88122945]
[1752828898576,0.48522,118780.0,118770.0,0.88122945]
[1752828899286,0.41022,118780.0,118770.0,0.88122945]
[1752828899515,0.48522,118780.0,118770.0,0.4154632]
[1752828899734,0.48522,118780.0,118770.0,0.3128651]
[1752828899735,0.67885442,118780.0,118770.0,0.3128651]
[1752828899946,0.67885442,118780.0,118770.0,0.32128459]
[1752828900158,0.67885442,118780.0,118770.0,0.78705084]
[1752828900372,0.79777698,118780.0,118770.0,0.11077828]
[1752828900591,0.71201736,118780.0,118770.0,0.10752828]
[1752828901255,0.71201736,118780.0,118770.0,0.27592097]
[1752828901478,0.71101736,118780.0,118770.0,0.2843406]
[1752828901706,0.71101736,118780.0,118770.0,0.27592097]
[1752828901934,0.70659851,118780.0,118770.0,0.27592097]
[1752828902147,0.70859851,118780.0,118770.0,0.2843406]
[1752828902367,0.57079851,118780.0,118770.0,0.79874901]
[1752828902576,0.56539591,118780.0,118770.0,0.80716843]
[1752828903004,0.73377442,118780.0,118770.0,0.80716857]
[1752828903291,0.73177442,118780.0,118770.0,0.80716857]
[1752828903518,0.59405442,118780.0,118770.0,0.81558799]
[1752828903739,0.73173442,118780.0,118770.0,0.80716857]
[1752828903921,0.59405442,118780.0,118770.0,0.81558806]
[1752828904160,0.42567591,118780.0,118770.0,0.82400734]
[1752828904396,0.41725706,118780.0,118770.0,0.81558792]
[1752828904622,0.56335591,118780.0,118770.0,0.80716857]
[1752828904834,0.35883842,118780.0,118770.0,0.75010685]
[1752828905056,0.56335577,118780.0,118770.0,0.76694576]
[1752828905270,0.74015313,118780.0,118770.0,0.77536532]
[1752828905486,0.35042,118780.0,118770.0,0.869544]
[1752828905701,0.50493735,118780.0,118770.0,0.869544]
[1752828905920,0.3756757,118780.0,118770.0,0.86112487]
[1752828906093,0.5133557,118780.0,118770.0,0.869544]
[1752828906339,0.51335563,118780.0,118770.0,0.869544]
[1752828906755,0.50493692,118780.0,118770.0,0.869544]
[1752828906962,0.36202692,118780.0,118770.0,0.869544]
[1752828907181,0.49970692,118780.0,118770.0,0.869544]
[1752828907597,0.49970685,118780.0,118770.0,0.869544]
[1752828907800,0.49128835,118780.0,118770.0,0.869544]
[1752828908013,0.49970685,118780.0,118770.0,0.869544]
[1752828908446,0.37044549,118780.0,118770.0,0.869544]
[1752828908655,0.50812549,118780.0,118770.0,0.869544]
[1752828908859,0.50812549,118780.0,118770.0,0.40377775]
[1752828909060,0.51654427,118780.0,118770.0,0.869544]
[1752828909262,0.50812549,118780.0,118770.0,0.869544]
[1752828909704,0.51654427,118780.0,118770.0,0.869544]
[1752828909989,0.50812549,118780.0,118770.0,0.869544]
[1752828910216,0.51654427,118780.0,118770.0,0.40377775]
[1752828910498,0.68492278,118780.0,118770.0,0.74168722]
[1752828910732,0.66808593,118780.0,118770.0,0.75852641]
[1752828910974,0.66808593,118780.0,118770.0,0.77536525]
[1752828911393,0.66808593,118780.0,118770.0,0.7669459]
[1752828911859,0.66808593,118780.0,118770.0,0.77536532]
[1752828912095,0.66808593,118780.0,118770.0,0.78378432]
[1752828912362,0.53040593,118780.0,118770.0,0.78378432]
[1752828912562,0.49966742,118780.0,118770.0,0.78378389]
[1752828912805,0.34519,118780.0,118770.0,0.78587389]
[1752828913021,0.48279,118780.0,118770.0,0.87163351]
[1752828913475,0.48279,118780.0,118770.0,0.86954351]
[1752828913712,0.41620842,118780.0,118770.0,0.86954351]
[1752828913939,0.41620842,118780.0,118770.0,0.75010671]
[1752828913940,0.68284299,118780.0,118770.0,0.75010671]
[1752828914172,0.51446448,118780.0,118770.0,0.29275988]
[1752828914460,0.49862692,118780.0,118770.0,0.77536446]
[1752828914677,0.50704556,118780.0,118770.0,0.77536446]
[1752828914894,0.51546441,118780.0,118770.0,0.76694533]
[1752828915121,0.51546434,118780.0,118770.0,0.77536446]
[1752828915336,0.72142485,118780.0,118770.0,0.75010671]
[1752828915554,0.72342485,118780.0,118770.0,0.75010678]
[1752828915802,0.39219,118780.0,118770.0,0.75010685]
[1752828916029,0.5381685,118780.0,118770.0,0.77536489]
[1752828916249,0.35902678,118780.0,118770.0,0.77536489]
[1752828916472,0.49658678,118780.0,118770.0,0.77536489]
[1752828916915,0.50500549,118780.0,118770.0,0.77536489]
[1752828917370,0.50500549,118780.0,118770.0,0.77536496]
[1752828917606,0.50500549,118780.0,118770.0,0.78378409]
[1752828917835,0.51342434,118780.0,118770.0,0.77536496]
[1752828918032,0.51342427,118780.0,118770.0,0.77536496]
[1752828918265,0.68180278,118780.0,118770.0,0.74168722]
[1752828918487,0.72338485,118780.0,118770.0,0.74168722]
[1752828918692,0.71496614,118780.0,118770.0,0.75010685]
[1752828918891,0.71496614,118780.0,118770.0,0.75852641]
[1752828919140,0.71496614,118780.0,118770.0,0.74168722]
[1752828919355,0.70654736,118780.0,118770.0,0.74168722]
[1752828919566,0.69812851,118780.0,118770.0,0.57329453]
[1752828919784,0.69812851,118780.0,118770.0,0.74168722]
[1752828920355,0.69812851,118780.0,118770.0,0.57329453]
[1752828920709,0.69812851,118780.0,118770.0,0.10752828]
[1752828921388,0.69812851,118780.0,118770.0,0.025268]
[1752828922274,1.03512851,118780.0,118770.0,0.025268]
[1752828922497,1.50089476,118780.0,118770.0,0.025268]
[1752828922709,1.50689476,118780.0,118770.0,0.026268]
[1752828922911,1.50689476,118780.0,118770.0,0.001]
[1752828923114,1.59265438,118780.0,118770.0,0.001]
[1752828923333,1.04112851,118780.0,118770.0,0.001]
[1752828923930,1.50689476,118780.0,118770.0,0.001]
[1752828924389,1.04112851,118780.0,118770.0,0.001]
[1752828924631,0.70112851,118780.0,118770.0,0.001]
[1752828925674,0.70412851,118780.0,118770.0,0.001]
[1752828925928,0.78988813,118780.0,118770.0,0.001]
[1752828926147,1.25565438,118780.0,118770.0,0.001]
[1752828926596,1.26376909,118780.0,118770.0,0.001]
[1752828926819,1.60376909,118780.0,118770.0,0.001]
[1752828927479,1.59565438,118780.0,118770.0,0.001]
[1752828927705,1.59265438,118780.0,118770.0,0.001]
[1752828927927,0.30004705,118760.0,118750.0,0.09239328]
[1752828928140,0.51248705,118760.0,118750.0,0.09239328]
[1752828928353,0.51779705,118760.0,118750.0,0.09239328]
[1752828928591,0.51779705,118760.0,118740.0,4.848e-05]
[1752828928592,0.25184196,118750.0,118740.0,4.848e-05]
[1752828928798,0.45428196,118750.0,118740.0,0.02533248]
[1752828929011,0.45959196,118750.0,118740.0,0.02533248]
[1752828929436,0.54593754,118750.0,118740.0,0.02533248]
[1752828929659,0.50959196,118750.0,118740.0,0.02533248]
[1752828930130,0.50959196,118750.0,118740.0,4.848e-05]
[1752828930578,1.31735821,118750.0,118740.0,4.848e-05]
[1752828931024,0.85359196,118750.0,118740.0,0.00104848]
[1752828931243,0.93935158,118750.0,118740.0,0.00104848]
[1752828931469,1.40311783,118750.0,118740.0,0.00104848]
[1752828931901,1.40111783,118750.0,118740.0,4.848e-05]
[1752828932122,0.93535158,118750.0,118740.0,4.848e-05]
[1752828932350,1.40111783,118750.0,118740.0,4.848e-05]
[1752828932571,1.40411783,118750.0,118740.0,0.00104848]
[1752828932790,1.40711783,118750.0,118740.0,0.00104848]
[1752828933677,1.32135821,118750.0,118740.0,0.00104848]
[1752828937055,0.07082516,118690.0,118680.0,0.00828229]
[1752828937272,0.075,118660.0,118650.0,0.70462481]
[1752828937514,0.21232,118660.0,118650.0,0.53808753]
[1752828937739,0.21232,118660.0,118650.0,0.53557917]
[1752828938176,0.40615024,118660.0,118650.0,0.53557917]
[1752828938384,0.3977233,118660.0,118650.0,0.53557917]
[1752828938592,0.3998033,118660.0,118650.0,0.53557917]
[1752828938801,0.4498033,118660.0,118650.0,0.53557917]
[1752828939007,0.4498033,118660.0,118650.0,0.07817247]
[1752828939214,0.44137615,118660.0,118650.0,0.07817247]
[1752828939426,0.44137615,118660.0,118650.0,0.09657147]
[1752828939610,0.50860615,118660.0,118650.0,0.09457147]
[1752828940084,0.48463323,118660.0,118650.0,0.08621192]
[1752828940296,0.48463323,118660.0,118650.0,0.26420299]
[1752828940297,0.52416059,118660.0,118650.0,0.26420299]
[1752828940504,0.3556118,118660.0,118650.0,0.28948643]
[1752828940715,0.39959887,118660.0,118650.0,0.28948643]
[1752828940922,0.39959887,118660.0,118650.0,0.28848643]
[1752828941128,0.2644,118660.0,118650.0,0.74567574]
[1752828942017,0.31145395,118660.0,118650.0,0.74567574]
[1752828942235,0.32311117,118660.0,118650.0,0.28948643]
[1752828942572,0.18579117,118660.0,118650.0,0.28948643]
[1752828942778,0.34634395,118660.0,118650.0,0.29148643]
[1752828942983,0.35642937,118660.0,118650.0,0.29148643]
[1752828943178,0.34800236,118660.0,118650.0,0.29148643]
[1752828943426,0.33791694,118660.0,118650.0,0.29148643]
[1752828943625,0.32949,118660.0,118650.0,0.29148643]
[1752828943862,0.3379168,118660.0,118650.0,0.29148643]
[1752828944063,0.32949,118660.0,118650.0,0.29148643]
[1752828944692,0.3379168,118660.0,118650.0,0.29148643]
[1752828945221,0.32949,118660.0,118650.0,0.29148643]
[1752828945438,0.3379168,118660.0,118650.0,0.29148643]
[1752828945655,0.34634374,118660.0,118650.0,0.29148643]
[1752828946091,0.34634374,118660.0,118650.0,0.74567574]
[1752828946292,0.40878665,118660.0,118650.0,0.29148643]
[1752828946507,0.35477075,118660.0,118650.0,0.29148643]
[1752828946697,0.3379168,118660.0,118650.0,0.29148643]
[1752828946908,0.34634381,118660.0,118650.0,0.29148643]
[1752828947146,0.34634374,118660.0,118650.0,0.29148643]
[1752828947555,0.3379168,118660.0,118650.0,0.29148643]
[1752828947768,0.3379168,118660.0,118650.0,0.74567574]
[1752828947983,0.19221,118660.0,118650.0,0.74567574]
[1752828948197,0.32949,118660.0,118650.0,0.74567574]
[1752828948410,0.33791687,118660.0,118650.0,0.74567574]
[1752828949060,0.35477082,118660.0,118650.0,0.73724809]
[1752828949321,0.36319797,118660.0,118650.0,0.7541036]
[1752828949522,0.36319797,118660.0,118650.0,0.75410318]
[1752828949740,0.52332024,118660.0,118650.0,0.274631]
[1752828949967,0.51489323,118660.0,118650.0,0.08921192]
[1752828950189,0.58323607,118660.0,118650.0,0.08921192]
[1752828950593,0.51489323,118660.0,118650.0,0.08921192]
[1752828950818,0.51489323,118660.0,118650.0,0.26620307]
[1752828951052,0.51489323,118660.0,118650.0,0.27463107]
[1752828951264,0.51489323,118660.0,118650.0,0.26620307]
[1752828951497,0.51489323,118660.0,118650.0,0.27463114]
[1752828951702,0.51489323,118660.0,118650.0,0.28305907]
[1752828951913,0.51489323,118660.0,118650.0,0.27463114]
[1752828952356,0.50646608,118660.0,118650.0,0.27463114]
[1752828952808,0.50646608,118660.0,118650.0,0.08921192]
[1752828953026,0.49803879,118660.0,118650.0,0.08921192]
[1752828953543,0.49803879,118660.0,118650.0,0.26620307]
[1752828953748,0.49803879,118660.0,118650.0,0.27463114]
[1752828953946,0.56469618,118660.0,118650.0,0.26620307]
[1752828954303,0.49803879,118660.0,118650.0,0.08921192]
[1752828954497,0.49803879,118660.0,118650.0,0.08706901]
[1752828954972,0.49893948,118660.0,118650.0,0.08706901]
[1752828955150,0.49893948,118660.0,118650.0,0.27248823]
[1752828955368,0.49893948,118660.0,118650.0,0.08706901]
[1752828956003,0.36165948,118660.0,118650.0,0.08706901]
[1752828956219,0.49885948,118660.0,118650.0,0.08706901]
[1752828957294,0.49885948,118660.0,118650.0,0.27248809]
[1752828957929,0.49885948,118660.0,118650.0,0.26406016]
[1752828958567,0.49885948,118660.0,118650.0,0.27248809]
[1752828959088,0.49885948,118660.0,118650.0,0.55215288]
[1752828959294,0.49885948,118660.0,118650.0,0.08706901]
[1752828959523,0.49885948,118660.0,118650.0,0.55215288]
[1752828960414,0.49885948,118660.0,118650.0,0.08706901]
[1752828960623,0.49885948,118660.0,118650.0,0.55215288]
[1752828961688,0.56559894,118660.0,118650.0,0.55215288]
[1752828962118,0.56559894,118660.0,118650.0,0.08706901]
[1752828962997,0.56559894,118660.0,118650.0,0.003]
[1752828963423,0.76795894,118660.0,118650.0,0.003]
[1752828963834,0.76795894,118660.0,118650.0,0.002]
[1752828964520,0.04002822,118640.0,118630.0,0.20230851]
[1752828964754,0.18553679,118640.0,118630.0,0.76347173]
[1752828964968,0.26896543,118640.0,118630.0,0.76347173]
[1752828965328,0.125,118650.0,118640.0,0.19386291]
[1752828965542,0.06925586,118660.0,118650.0,0.19384658]
[1752828965731,0.47422885,118660.0,118650.0,0.74658073]
[1752828966033,0.13482885,118660.0,118650.0,0.74955073]
[1752828966228,0.48265579,118660.0,118650.0,0.74955073]
[1752828966435,0.41608287,118660.0,118650.0,0.28446686]
[1752828966634,0.50151009,118660.0,118650.0,0.74955073]
[1752828966883,0.4930828,118660.0,118650.0,0.74955073]
[1752828967095,0.07025579,118660.0,118650.0,0.74955073]
[1752828967291,0.06182899,118660.0,118650.0,0.74955073]
[1752828967487,0.07840205,118660.0,118650.0,0.81385073]
[1752828967880,0.42622885,118660.0,118650.0,0.78125073]
[1752828968139,0.41880205,118660.0,118650.0,0.78225073]
[1752828968339,0.14625586,118660.0,118650.0,0.74212308]
[1752828968599,0.13682885,118660.0,118650.0,0.74658073]
[1752828968805,0.13782885,118660.0,118650.0,0.75158073]
[1752828968954,0.22805002,118660.0,118650.0,0.74315308]
[1752828969154,0.56856002,118660.0,118650.0,0.74944073]
[1752828969532,0.56856002,118660.0,118650.0,0.73358522]
[1752828969746,0.56856002,118660.0,118650.0,0.75044094]
[1752828969747,0.551706,118660.0,118650.0,0.75044094]
[1752828970071,0.56856037,118660.0,118650.0,0.75886866]
[1752828970270,0.56013301,118660.0,118650.0,0.76729631]
[1752828970482,0.73710916,118660.0,118650.0,0.74201315]